bitfinex-derivatives/quotes_BNBF0:USTF0_20250211
["timestamp","ask_amount","ask_price","bid_price","bid_amount"]
[1739289020639,0.31295476,639.07,638.18,0.28752807]
[1739289021433,0.31295476,639.07,638.17,1.16597008]
[1739289021737,0.31295476,639.07,638.18,0.28760825]
[1739289024135,0.31295476,639.07,638.01,0.28760825]
[1739289024334,0.31295476,639.07,638.01,0.89380329]
[1739289024738,0.31295476,639.07,638.01,0.28760825]
[1739289024939,0.31295476,639.07,638.01,0.89387297]
[1739289025243,0.31295476,639.07,638.02,0.89387394]
[1739289025437,0.31295476,639.07,638.03,0.89387394]
[1739289025645,0.31295476,639.07,638.01,0.89387394]
[1739289025844,0.31295476,639.07,638.02,0.2876056]
[1739289026141,0.31295476,639.07,638.03,0.2876056]
[1739289026338,0.31295476,639.07,638.01,0.2876056]
[1739289026543,0.31295476,639.07,638.02,0.2876056]
[1739289026741,0.31295476,639.07,638.03,0.2876056]
[1739289026942,0.31295476,639.07,638.16,1.16597008]
[1739289027141,0.31295476,639.07,638.17,0.28760778]
[1739289028839,0.31295476,639.07,638.16,1.16597008]
[1739289029043,0.31295476,639.07,638.17,0.28761004]
[1739289030246,0.31295476,639.07,638.09,0.28761004]
[1739289030447,0.31295476,639.07,638.1,0.28761004]
[1739289030646,0.31295476,639.07,638.09,0.28761004]
[1739289030849,0.31295476,639.07,638.1,0.28761004]
[1739289031048,0.31295476,639.07,638.11,0.28761004]
[1739289031245,0.31295476,639.07,638.09,0.28761004]
[1739289031445,0.31295476,639.07,638.1,0.28761004]
[1739289031649,0.31295476,639.07,638.11,0.28761004]
[1739289031844,0.31295476,639.07,638.12,0.28761004]
[1739289032151,0.31295476,639.07,638.13,0.28761004]
[1739289032350,0.31295476,639.07,638.1,0.28761004]
[1739289032648,0.31295476,639.07,638.11,0.28761004]
[1739289032852,0.31295476,639.07,638.1,0.28761004]
[1739289034456,0.31295476,639.07,638.11,0.28766243]
[1739289034655,0.31295476,639.07,638.1,0.28766243]
[1739289034855,0.31295476,639.07,638.09,0.873]
[1739289035055,0.31295476,639.07,638.1,0.28766639]
[1739289036050,0.31295476,639.07,638.09,0.873]
[1739289038455,0.31295476,639.07,638.09,1.68]
[1739289041156,0.31295476,639.07,638.22,0.816]
[1739289047359,0.269283,639.06,638.22,0.816]
[1739289047560,0.31296945,639.04,638.22,0.816]
[1739289047759,0.269283,639.03,638.22,0.816]
[1739289047959,0.31298414,639.01,638.22,0.816]
[1739289048155,0.31298414,639.01,638.09,1.68]
[1739289048466,0.269283,639.0,638.09,1.68]
[1739289048662,0.31299884,638.98,638.09,1.68]
[1739289048862,0.269283,638.97,638.09,1.68]
[1739289049064,0.31301353,638.95,638.09,1.68]
[1739289049262,0.26929792,638.94,638.45,0.901]
[1739289049561,0.31302333,638.93,638.45,0.901]
[1739289049761,0.26929792,638.92,638.45,0.901]
[1739289049960,0.31303313,638.91,638.45,1.731]
[1739289050157,0.26929792,638.9,638.45,1.731]
[1739289050361,0.31304293,638.89,638.45,1.731]
[1739289050561,0.26929792,638.88,638.45,1.731]
[1739289050759,0.31305273,638.87,638.45,1.731]
[1739289050956,0.26929792,638.86,638.45,1.731]
[1739289051163,0.31306253,638.85,638.45,1.731]
[1739289051362,0.26929792,638.84,638.45,1.731]
[1739289051562,0.31307233,638.83,638.45,1.731]
[1739289051863,0.26929792,638.82,638.45,1.731]
[1739289052162,0.31308213,638.81,638.45,2.516]
[1739289052363,0.26929792,638.8,638.45,2.516]
[1739289052559,0.31309193,638.79,638.45,2.516]
[1739289052759,0.26929792,638.78,638.45,2.516]
[1739289052957,0.31310174,638.77,638.45,3.389]
[1739289053963,0.26935561,638.76,638.45,4.185]
[1739289054263,5.95822157,639.98,638.45,4.185]
[1739289054264,0.31311154,638.75,638.45,4.185]
[1739289056857,0.26930436,638.74,638.45,4.185]
[1739289057163,0.31312135,638.73,638.45,4.185]
[1739289057357,0.26930436,638.72,638.45,3.284]
[1739289057559,0.31313115,638.71,638.45,3.284]
[1739289057761,0.26930436,638.7,638.45,3.284]
[1739289057962,0.31314096,638.69,638.45,3.284]
[1739289058162,0.26930436,638.68,638.45,3.284]
[1739289058363,0.31315076,638.67,638.45,3.284]
[1739289058661,0.31315076,638.67,638.5,1.025]
[1739289058866,0.26929745,638.66,638.5,1.025]
[1739289059060,0.31316057,638.65,638.5,1.025]
[1739289059761,0.31316057,638.65,638.51,0.324]
[1739289061863,0.2693781,638.64,638.51,0.324]
[1739289062063,0.31317038,638.63,638.51,0.324]
[1739289062368,0.2693781,638.62,638.51,0.324]
[1739289062664,0.31318018,638.61,638.51,0.324]
[1739289062870,0.2693781,638.6,638.51,0.324]
[1739289063270,0.31318999,638.59,638.51,0.324]
[1739289063464,0.2693781,638.58,638.51,0.324]
[1739289063669,0.3131998,638.57,638.51,0.324]
[1739289063864,0.2693781,638.56,638.51,0.324]
[1739289064067,0.31320961,638.55,638.51,0.324]
[1739289064673,0.26943455,638.54,638.51,0.324]
[1739289064870,0.31321942,638.53,638.51,0.324]
[1739289065071,0.26943455,638.52,638.45,2.99671331]
[1739289065374,0.31322923,638.51,638.45,2.99671331]
[1739289065671,0.26943455,638.5,638.45,2.99671331]
[1739289065871,0.31323904,638.49,638.45,2.99671331]
[1739289066072,0.26943455,638.48,638.45,2.99671331]
[1739289066273,0.31324886,638.47,638.45,2.99671331]
[1739289066472,0.26943455,638.46,638.45,2.99671331]
[1739289066772,0.58268831,638.46,638.45,2.99671331]
[1739289068667,0.31325376,638.46,638.45,2.99671331]
[1739289068873,0.58271336,638.46,638.45,2.99671331]
[1739289071170,0.31325376,638.46,638.45,2.99671331]
[1739289073880,0.31325376,638.46,638.45,2.20071331]
[1739289077978,0.31325376,638.46,638.45,0.785]
[1739289079080,0.31325376,638.46,638.09,0.807]
[1739289079277,0.31325376,638.46,638.34,0.873]
[1739289088586,0.31325376,638.46,638.34,1.993]
[1739289100495,0.26942918,638.45,638.34,1.993]
[1739289100690,0.31326357,638.44,638.34,1.993]
[1739289100994,0.26942918,638.43,638.34,1.916]
[1739289101190,0.31327339,638.42,638.34,1.916]
[1739289101393,0.26942918,638.41,638.34,1.916]
[1739289101592,0.3132832,638.4,638.34,1.916]
[1739289101791,0.26942918,638.39,638.34,1.916]
[1739289102096,0.58271881,638.38,638.34,1.916]
[1739289102297,0.58272372,638.37,638.34,1.916]
[1739289102492,0.58272862,638.36,638.34,1.916]
[1739289102691,0.31330774,638.35,638.34,1.916]
[1739289103898,0.31330774,638.35,638.29,1.003]
[1739289104198,0.31330774,638.35,638.34,0.992]
[1739289104393,0.5828173,638.35,638.34,0.03478213]
[1739289104794,0.5828173,638.35,637.16,1.16597008]
[1739289104994,0.26950956,638.34,637.17,0.28809691]
[1739289105199,0.31331756,638.33,637.17,0.28809691]
[1739289110096,0.31331756,638.33,637.31,1.105]
[1739289110696,0.31331756,638.33,637.32,0.28803308]
[1739289111803,0.31331756,638.33,637.32,1.25103308]
[1739289112004,0.31331756,638.33,637.33,0.28803308]
[1739289113203,0.31331756,638.33,637.34,0.28802852]
[1739289113398,0.31331756,638.33,637.33,0.28802852]
[1739289119211,0.31331756,638.33,637.59,1.088]
[1739289124110,0.31331756,638.33,637.59,2.073]
[1739289124710,0.31331756,638.33,637.59,2.758]
[1739289125315,0.31331756,638.33,637.59,2.811]
[1739289126513,0.31331756,638.33,637.59,1.723]
[1739289128613,0.26943732,638.32,637.59,1.723]
[1739289128914,0.31332738,638.31,637.59,1.723]
[1739289129113,0.26943732,638.3,637.59,1.723]
[1739289129306,0.31333719,638.29,637.59,1.723]
[1739289129908,0.31333719,638.29,637.89,1.048]
[1739289130308,0.26947078,638.28,637.89,1.048]
[1739289130515,0.31334701,638.27,637.89,1.048]
[1739289130818,0.26947078,638.26,637.89,1.048]
[1739289131119,0.31335683,638.25,637.89,1.048]
[1739289131311,0.26947078,638.24,637.89,1.048]
[1739289131512,0.31336665,638.23,637.89,1.048]
[1739289131716,0.26947078,638.22,637.89,1.048]
[1739289132018,0.31337647,638.21,637.89,1.048]
[1739289132216,0.26947078,638.2,637.89,1.048]
[1739289132412,0.31338629,638.19,637.89,1.048]
[1739289132716,0.26947078,638.18,637.89,1.048]
[1739289132918,0.31339611,638.17,637.89,1.048]
[1739289136916,0.31339611,638.17,637.59,1.723]
[1739289139223,0.31339611,638.17,638.05,1.017]
[1739289145434,0.26962974,638.16,638.05,1.017]
[1739289145733,0.31340593,638.15,638.05,1.017]
[1739289145930,0.26962974,638.14,638.05,1.017]
[1739289146129,0.31341576,638.13,638.05,1.017]
[1739289146332,0.26962974,638.12,638.05,1.017]
[1739289146533,0.31342558,638.11,638.05,1.017]
[1739289146834,0.26962057,638.1,638.05,1.017]
[1739289147034,0.3134354,638.09,638.05,1.017]
[1739289147230,0.26962057,638.08,638.04,0.053]
[1739289147432,0.31344523,638.07,637.96,1.332]
[1739289147632,0.26962057,638.06,637.96,1.332]
[1739289148433,0.31345505,638.05,637.96,1.332]
[1739289148634,0.26962057,638.04,637.96,1.332]
[1739289149134,0.31346488,638.03,637.96,1.332]
[1739289149335,0.26962057,638.02,637.96,1.332]
[1739289149637,1.39241872,638.9,638.02,0.47790472]
[1739289150331,1.39241872,638.73,638.02,0.47790472]
[1739289150733,0.25674773,638.72,637.96,1.332]
[1739289151036,0.25674773,638.71,637.96,1.332]
[1739289151230,1.39241872,638.73,637.96,1.332]
[1739289151231,0.25674773,638.7,637.96,1.332]
[1739289151434,0.25674773,638.69,637.96,1.332]
[1739289151634,0.25674773,638.68,637.96,1.332]
[1739289151835,0.25674773,638.67,637.96,1.332]
[1739289152036,0.25674773,638.66,637.96,1.332]
[1739289152235,0.25674492,638.65,637.96,1.332]
[1739289152436,0.25674492,638.64,637.96,1.332]
[1739289152633,0.25674492,638.63,637.96,1.332]
[1739289152937,0.25674492,638.62,637.96,1.332]
[1739289153137,0.25674492,638.61,637.96,1.332]
[1739289153338,0.25674492,638.6,637.96,1.332]
[1739289153539,0.25674492,638.59,637.96,1.332]
[1739289153837,0.25674492,638.58,637.96,1.332]
[1739289154037,0.25674492,638.57,637.96,1.332]
[1739289154234,0.25674492,638.75,637.96,1.332]
[1739289154539,5.83202494,638.86,637.96,1.332]
[1739289154540,1.64916364,638.74,637.96,1.332]
[1739289154735,0.25674492,638.73,637.96,1.332]
[1739289154936,0.25674492,638.72,637.96,1.332]
[1739289155233,0.25674492,638.71,637.96,1.332]
[1739289155435,0.25674492,638.7,637.96,1.332]
[1739289155637,0.25674492,638.69,637.96,1.332]
[1739289155838,0.25674492,638.68,637.96,1.332]
[1739289156035,0.25674492,638.73,637.96,1.332]
[1739289156340,0.25674492,638.72,637.96,1.332]
[1739289156534,1.39241872,638.74,637.96,1.332]
[1739289156535,0.25674492,638.71,637.96,1.332]
[1739289156738,0.25674492,638.7,637.96,1.332]
[1739289156937,0.25674492,638.69,637.96,1.332]
[1739289157135,0.25674492,638.73,637.96,1.332]
[1739289157335,0.25674492,638.72,637.96,1.332]
[1739289157541,0.25674492,638.71,637.96,1.332]
[1739289157738,4.11174985,638.79,637.96,1.332]
[1739289157937,0.25674492,638.78,637.96,1.332]
[1739289158336,2.85660872,638.79,637.96,1.332]
[1739289158543,0.25674492,638.78,637.96,1.332]
[1739289159540,2.5998638,638.79,637.96,1.332]
[1739289159838,0.25660622,638.78,637.96,1.332]
[1739289160042,5.81383171,638.99,637.96,1.332]
[1739289160043,0.25660622,638.88,637.96,1.332]
[1739289160244,0.25660622,638.87,637.96,1.332]
[1739289160443,0.25660622,638.99,637.96,1.332]
[1739289160640,1.39241872,639.0,637.96,1.332]
[1739289160641,0.25660622,638.98,637.96,1.332]
[1739289160841,0.25660622,638.97,637.96,1.332]
[1739289161038,0.25660622,638.96,637.96,1.332]
[1739289161238,0.25660622,638.95,637.96,1.332]
[1739289161441,0.25660622,638.99,637.96,1.332]
[1739289161638,0.25660622,638.98,637.96,1.332]
[1739289161843,0.25660622,638.97,637.96,1.332]
[1739289162142,0.25660622,638.96,637.96,1.332]
[1739289162342,0.25660622,638.95,637.96,1.332]
[1739289162538,0.25660622,638.94,637.96,1.332]
[1739289162843,0.25660622,638.93,637.96,1.332]
[1739289163044,0.25660622,638.99,637.96,1.332]
[1739289163343,1.39241872,639.05,637.96,1.332]
[1739289163544,0.25662079,639.04,637.96,1.332]
[1739289165242,1.39241872,639.05,638.37,0.955]
[1739289165438,0.2566242,639.04,638.37,0.955]
[1739289165838,4.0990152,639.06,638.37,0.955]
[1739289166144,0.2566242,639.05,638.37,1.639]
[1739289167041,2.5998638,639.06,638.37,1.639]
[1739289167342,0.25661754,639.05,638.37,1.639]
[1739289167539,0.25661754,639.04,638.37,1.639]
[1739289167741,0.25661754,639.03,638.37,1.639]
[1739289167940,0.25661754,639.02,638.37,1.639]
[1739289168141,0.25661754,639.01,638.37,1.639]
[1739289168340,0.25661754,639.0,638.37,1.639]
[1739289168544,0.25661754,638.99,638.37,1.639]
[1739289168740,0.25661754,638.98,638.37,1.639]
[1739289168943,0.25661754,638.97,638.37,1.114]
[1739289169343,0.25661754,638.96,638.37,1.114]
[1739289169541,1.39241872,638.97,638.37,1.114]
[1739289169542,0.25661754,638.95,638.37,0.08171548]
[1739289169746,0.25661754,638.94,638.37,0.08171548]
[1739289170046,0.25661754,638.94,638.26,1.434]
[1739289170047,0.25661754,638.93,638.26,1.434]
[1739289170348,0.25661754,638.92,638.26,1.434]
[1739289170542,0.25661754,638.91,638.26,1.434]
[1739289170746,0.25661754,638.9,638.26,1.434]
[1739289170944,0.25661754,638.89,638.26,1.434]
[1739289171143,0.25661754,638.88,638.26,1.434]
[1739289171344,0.25661754,638.87,638.26,1.434]
[1739289171544,0.25661754,638.86,638.26,1.434]
[1739289171749,0.25661754,638.85,638.26,1.434]
[1739289171946,0.25661754,638.84,638.26,1.434]
[1739289172143,0.25661754,638.83,638.26,1.434]
[1739289172347,0.25661754,638.89,638.26,1.434]
[1739289172651,0.25661754,638.88,638.26,1.434]
[1739289172950,0.25661754,638.87,638.26,1.434]
[1739289173147,0.25661754,638.89,638.26,1.434]
[1739289173350,1.39241872,638.91,638.26,1.434]
[1739289173351,0.25661754,638.88,638.26,1.434]
[1739289173650,0.25661754,638.9,638.26,1.434]
[1739289174449,1.39241872,638.91,638.26,1.434]
[1739289174649,0.25661565,638.9,638.26,1.434]
[1739289175950,2.55040967,639.17,638.26,1.434]
[1739289176150,0.25632119,639.16,638.26,1.434]
[1739289176548,0.25632119,639.3,638.26,1.434]
[1739289176748,0.25632119,639.29,638.26,1.434]
[1739289176960,0.25632119,639.3,638.26,1.434]
[1739289177243,0.25632119,639.29,638.26,1.434]
[1739289177550,0.25632119,639.3,638.26,1.434]
[1739289177749,0.25632119,639.28,638.26,1.434]
[1739289177947,0.25632119,639.27,638.26,1.434]
[1739289178153,1.39241872,639.31,638.26,1.434]
[1739289178355,0.2563002,639.3,638.26,1.434]
[1739289179253,0.2563002,639.29,638.26,1.434]
[1739289179454,0.2563002,639.67,638.26,1.434]
[1739289179753,2.54129845,639.7,638.26,1.434]
[1739289179754,0.2563002,639.66,638.26,2.605]
[1739289179953,0.2563002,639.69,638.26,2.605]
[1739289180252,0.2563002,639.68,638.26,2.605]
[1739289180453,0.2563002,639.69,639.0,1.121]
[1739289180654,0.2563002,639.67,639.0,1.121]
[1739289180848,0.2563002,639.66,639.0,1.121]
[1739289181052,0.2563002,639.69,639.0,1.121]
[1739289181247,0.2563002,639.68,639.0,1.121]
[1739289181447,0.2563002,639.67,639.0,1.121]
[1739289181646,5.98265618,640.08,639.0,1.121]
[1739289181847,2.22160733,640.07,639.0,1.121]
[1739289182053,0.2563002,640.06,639.0,1.121]
[1739289182249,0.2563002,640.05,639.0,1.121]
[1739289182655,0.2563002,640.04,639.0,1.121]
[1739289182854,0.2563002,640.03,639.0,1.121]
[1739289183154,0.2563002,640.02,639.0,1.121]
[1739289183356,0.2563002,640.01,639.0,1.121]
[1739289183556,0.2563002,640.0,639.0,1.121]
[1739289183749,0.2563002,639.99,639.0,1.121]
[1739289183952,0.2563002,639.98,639.0,1.121]
[1739289184152,0.2563002,639.97,639.0,1.121]
[1739289184355,0.2563002,639.96,639.0,1.121]
[1739289184552,0.2563002,639.95,639.0,1.121]
[1739289184858,0.2563002,639.94,639.0,1.121]
[1739289185152,0.25636406,639.93,639.0,1.121]
[1739289185358,5.98272004,640.08,639.0,1.121]
[1739289185554,4.01741291,640.07,639.0,1.121]
[1739289185755,5.96841807,640.07,639.0,1.121]
[1739289186056,8.50971652,640.06,639.0,1.121]
[1739289186256,5.96841807,640.05,639.0,1.121]
[1739289186560,4.00801092,640.04,639.0,1.121]
[1739289186758,0.25636406,640.03,639.0,1.121]
[1739289186956,0.25631036,640.02,639.0,1.121]
[1739289187157,0.25631036,640.01,639.0,1.121]
[1739289187357,0.25631036,640.0,639.0,1.121]
[1739289187554,0.25631036,639.99,639.0,1.121]
[1739289187760,0.25631036,639.98,639.0,1.121]
[1739289187957,0.25631036,639.97,639.0,1.121]
[1739289188158,0.25631036,639.96,639.0,1.121]
[1739289188361,0.25631036,639.95,639.0,1.121]
[1739289188553,0.25631036,639.95,638.26,2.605]
[1739289188554,0.25631036,639.94,638.26,2.605]
[1739289188958,0.25631036,639.93,638.26,2.605]
[1739289189161,0.25631036,639.92,638.26,2.605]
[1739289189462,0.25631036,639.91,638.26,2.605]
[1739289189662,1.39241872,640.26,638.26,2.605]
[1739289189663,0.25631036,639.9,639.49,1.09]
[1739289189863,0.25631036,639.89,638.26,2.605]
[1739289190064,0.25631036,639.88,638.26,2.605]
[1739289190365,0.25631036,639.87,638.26,2.605]
[1739289190663,0.25625152,639.86,638.26,2.605]
[1739289190963,0.25625152,639.85,638.26,2.605]
[1739289191165,0.25625152,639.84,638.89,1.009]
[1739289191360,0.25625152,639.83,638.89,1.009]
[1739289191561,0.25625152,639.82,638.89,1.009]
[1739289191761,0.25625152,639.81,638.89,1.009]
[1739289191963,0.25625152,639.8,638.89,1.009]
[1739289192165,0.25625152,639.79,638.89,1.009]
[1739289192360,0.25625152,639.78,638.89,1.009]
[1739289192565,0.25625152,639.77,638.89,1.009]
[1739289192868,0.25625152,639.76,638.89,1.009]
[1739289193063,0.25625152,639.75,638.89,1.009]
[1739289193269,0.25625152,639.74,638.89,1.009]
[1739289193470,0.25625152,639.73,638.89,1.009]
[1739289193670,0.25625152,639.72,638.89,1.009]
[1739289193870,0.25625152,639.71,638.89,1.009]
[1739289194071,0.25625152,639.7,638.89,1.009]
[1739289194270,0.25625152,640.18,638.89,1.009]
[1739289194465,0.25625335,640.17,638.89,1.009]
[1739289194670,0.25625335,640.16,638.89,1.009]
[1739289194972,0.25625335,640.15,638.89,1.009]
[1739289195171,0.25625335,640.14,638.89,1.009]
[1739289195370,0.25625335,640.13,638.89,1.009]
[1739289195569,0.25625335,640.12,638.89,1.009]
[1739289195770,0.25625335,640.11,638.89,1.009]
[1739289195971,0.25625335,640.1,638.89,1.009]
[1739289196273,0.31246094,640.08,638.89,1.009]
[1739289196472,0.25625335,640.07,638.89,1.009]
[1739289196772,0.31247558,640.05,638.89,1.009]
[1739289197071,0.25625335,640.04,638.89,1.009]
[1739289197265,0.31249023,640.02,638.89,1.009]
[1739289197566,0.25625335,640.01,638.89,1.009]
[1739289197771,0.31250488,639.99,638.89,1.009]
[1739289197971,0.31250488,639.99,638.89,2.17]
[1739289198173,0.25625335,639.98,638.89,1.161]
[1739289198471,0.31251953,639.96,638.89,1.161]
[1739289198673,0.25625335,639.95,638.89,1.161]
[1739289198874,0.31253418,639.93,638.89,1.161]
[1739289199068,0.25625335,639.92,638.89,1.161]
[1739289199271,0.31254883,639.9,639.18,0.814]
[1739289199467,0.25625335,639.89,639.18,0.814]
[1739289199674,0.56881195,639.88,639.18,0.814]
[1739289199874,3.75164686,640.3,639.18,0.814]
[1739289199875,0.56881683,639.87,639.18,0.814]
[1739289200069,0.56882172,639.86,639.18,0.814]
[1739289200273,0.5688266,639.85,639.18,0.814]
[1739289200474,0.56883149,639.84,639.18,0.814]
[1739289200673,0.56883637,639.83,639.18,0.814]
[1739289200874,0.56884126,639.82,639.18,0.814]
[1739289201175,0.56884615,639.81,639.18,0.814]
[1739289201370,0.25625335,639.8,639.18,0.814]
[1739289201576,0.25625335,639.79,639.18,0.814]
[1739289201771,0.25625335,639.78,639.18,0.814]
[1739289201974,0.25625335,639.8,639.18,0.814]
[1739289202179,0.25625335,639.79,639.18,0.814]
[1739289202475,0.25625335,639.78,639.18,0.814]
[1739289202775,0.25625335,639.77,639.18,0.814]
[1739289202976,0.25625335,639.76,639.18,0.814]
[1739289203176,0.25625335,639.8,639.18,0.814]
[1739289203374,0.25625335,639.79,639.18,0.814]
[1739289203571,0.25625335,639.8,639.18,0.814]
[1739289203776,0.25625335,639.78,639.18,0.814]
[1739289203980,0.25625335,639.77,639.18,0.814]
[1739289204171,0.31261723,639.76,639.18,0.814]
[1739289204373,0.25625335,639.75,639.18,0.814]
[1739289204572,0.312627,639.74,639.18,0.814]
[1739289204775,0.25625335,639.73,639.18,0.814]
[1739289204968,0.31263677,639.72,639.18,0.814]
[1739289205173,0.25625335,639.71,639.18,0.814]
[1739289205376,0.31264655,639.7,639.18,0.814]
[1739289205577,0.25625335,639.69,639.18,0.814]
[1739289205779,0.31265632,639.68,639.18,0.814]
[1739289205980,0.25625335,639.67,639.18,0.814]
[1739289206173,0.3126661,639.66,639.18,0.814]
[1739289206374,0.25625335,639.65,639.18,0.814]
[1739289206573,0.31267588,639.64,639.18,0.814]
[1739289206777,0.25625335,639.63,639.18,0.814]
[1739289207178,0.31268565,639.62,639.18,0.814]
[1739289207379,0.25625335,639.61,638.89,1.161]
[1739289207678,0.56893939,639.6,638.89,1.161]
[1739289207978,0.25624396,639.59,638.89,1.161]
[1739289208576,0.25624396,639.59,639.1,0.85]
[1739289208776,0.31270521,639.58,639.1,0.85]
[1739289208978,0.25624396,639.57,639.1,0.85]
[1739289209178,0.31271499,639.56,639.1,0.85]
[1739289209477,0.25624396,639.55,639.1,0.85]
[1739289209677,0.31272477,639.54,639.1,0.85]
[1739289209978,0.25624396,639.53,639.1,0.85]
[1739289210278,0.31273455,639.52,639.1,0.85]
[1739289210477,0.25624396,639.51,639.1,0.85]
[1739289210678,0.31274433,639.5,639.1,0.85]
[1739289210878,0.25624396,639.49,639.1,0.85]
[1739289211279,0.31275411,639.48,639.1,0.85]
[1739289211577,0.25624396,639.47,639.1,0.85]
[1739289212078,0.31276389,639.46,639.1,0.85]
[1739289212280,0.25624396,639.45,639.1,0.85]
[1739289212479,0.31277367,639.44,639.1,0.85]
[1739289212679,0.25624396,639.43,639.1,0.85]
[1739289212978,0.31278346,639.42,639.1,0.85]
[1739289213279,0.25615485,639.41,639.1,0.85]
[1739289213474,0.31279324,639.4,639.1,0.85]
[1739289213676,0.25615485,639.39,639.1,0.85]
[1739289213877,0.31280302,639.38,639.1,0.85]
[1739289214274,0.25615485,639.37,639.1,0.85]
[1739289214682,0.31281281,639.36,639.1,0.85]
[1739289215475,0.25616805,639.35,639.1,0.85]
[1739289215679,0.31282259,639.34,639.1,0.85]
[1739289216181,0.25617677,639.33,639.1,2.108]
[1739289216380,0.31283238,639.32,639.1,2.108]
[1739289216982,0.2561838,639.31,639.1,2.108]
[1739289217181,0.31284217,639.3,639.1,2.108]
[1739289217382,0.2561838,639.29,639.1,2.108]
[1739289217579,0.2561838,639.29,639.1,1.258]
[1739289218177,0.31284217,639.3,639.1,1.258]
[1739289218778,0.31284217,639.3,639.1,2.08]
[1739289221180,0.31284217,639.3,639.1,3.104]
[1739289224581,0.25622956,639.29,639.1,3.104]
[1739289224785,0.31285195,639.28,639.1,3.104]
[1739289224986,0.25622956,639.27,639.1,3.104]
[1739289225183,0.31286174,639.26,639.1,3.104]
[1739289225379,0.25622956,639.25,639.1,3.104]
[1739289225784,0.31287153,639.24,639.1,2.282]
[1739289225985,0.25622956,639.23,639.1,2.282]
[1739289226185,0.31288132,639.22,639.1,2.282]
[1739289226380,0.25622956,639.21,639.1,2.282]
[1739289226586,0.31289111,639.2,639.1,2.282]
[1739289226783,0.25622956,639.19,639.1,2.282]
[1739289226983,1.39241872,639.58,639.2,0.23497843]
[1739289228089,1.39241872,639.58,639.1,2.282]
[1739289230186,1.39241872,639.56,639.1,2.282]
[1739289232285,1.39241872,639.53,639.1,2.282]
[1739289233389,1.39241872,639.53,639.1,3.095]
[1739289234283,1.39241872,639.83,639.1,3.095]
[1739289236384,1.39241872,639.91,639.1,3.095]
[1739289239793,1.39241872,639.68,639.1,3.095]
[1739289242493,1.39241872,639.78,639.1,3.095]
[1739289245195,4.47526867,639.96,639.1,3.095]
[1739289245196,1.39241872,639.85,639.1,3.095]
[1739289246799,1.39241872,639.73,639.1,3.095]
[1739289249798,1.92137079,639.94,639.1,3.095]
[1739289250000,1.92137079,639.95,639.1,3.095]
[1739289250201,2.55526697,639.96,639.51,0.828]
[1739289250500,2.55526697,639.96,639.1,0.813]
[1739289251805,1.39241872,639.97,639.1,1.909]
[1739289252903,1.39241872,639.75,639.1,1.909]
[1739289256007,1.39241872,639.86,639.1,1.909]
[1739289256407,1.39241872,639.86,639.1,3.767]
[1739289258908,2.55177634,640.09,639.1,3.767]
[1739289259110,1.39241872,640.2,639.1,3.767]
[1739289261814,1.39241872,640.2,639.55,1.203]
[1739289262812,2.36904575,640.31,639.55,1.203]
[1739289262813,1.87215434,640.45,639.55,1.203]
[1739289263016,2.54728109,640.47,639.55,1.203]
[1739289263209,1.39241872,640.61,639.55,1.203]
[1739289265012,1.39241872,640.68,639.55,1.203]
[1739289267523,1.39241872,640.6,639.55,1.203]
[1739289267727,0.31221705,640.58,639.55,1.203]
[1739289269822,0.31221705,640.58,639.54,1.197]
[1739289271123,0.31221705,640.58,640.1,0.844]
[1739289271423,0.31221705,640.58,639.54,1.197]
[1739289272416,0.31221705,640.58,639.66,0.869]
[1739289279832,1.39241872,640.57,639.66,0.869]
[1739289280030,0.31223167,640.55,639.66,0.869]
[1739289281532,0.31223167,640.55,639.65,0.828]